bitfinex-derivatives/quotes_BTCF0:USTF0_20250324
["timestamp","ask_amount","ask_price","bid_price","bid_amount"]
[1742821518862,0.1145613,87279.0,87273.0,0.1145683]
[1742821519050,0.1158413,87279.0,87278.0,0.00145188]
[1742821519255,0.00128,87279.0,87278.0,0.00145188]
[1742821519455,0.00128,87279.0,87278.0,0.11601448]
[1742821519663,0.11584525,87279.0,87278.0,0.11601448]
[1742821519963,0.17734525,87279.0,87278.0,0.11601448]
[1742821520857,0.17734525,87279.0,87278.0,0.14901448]
[1742821521261,0.17734525,87279.0,87278.0,0.11601448]
[1742821522464,0.17734525,87279.0,87278.0,0.14731448]
[1742821522660,0.17734525,87279.0,87278.0,0.17951448]
[1742821523153,0.17734525,87279.0,87278.0,0.00145188]
[1742821523363,0.17734525,87279.0,87278.0,0.11601448]
[1742821523858,0.17734525,87279.0,87278.0,0.00145188]
[1742821524059,0.17734525,87279.0,87278.0,0.11601448]
[1742821528768,0.17734525,87279.0,87278.0,0.14801448]
[1742821529374,0.29190655,87279.0,87278.0,0.14711448]
[1742821529568,0.17734525,87279.0,87278.0,0.14711448]
[1742821529974,0.17734525,87279.0,87278.0,0.17911448]
[1742821533074,0.29190655,87279.0,87278.0,0.17911448]
[1742821533272,0.29190655,87279.0,87278.0,0.00145188]
[1742821533474,0.29190655,87279.0,87278.0,0.00017188]
[1742821536468,0.1145757,87268.0,87267.0,0.3608]
[1742821536659,0.1145757,87268.0,87267.0,0.476657]
[1742821536864,0.2082557,87268.0,87267.0,0.476657]
[1742821537065,0.2069757,87268.0,87267.0,0.475377]
[1742821537265,0.32155145,87268.0,87267.0,0.475377]
[1742821537774,0.20797575,87268.0,87267.0,0.475377]
[1742821537977,0.20797575,87268.0,87267.0,0.540677]
[1742821541979,0.32387145,87268.0,87267.0,0.541997]
[1742821542177,0.20929575,87268.0,87267.0,0.541997]
[1742821543677,0.32387145,87268.0,87267.0,0.541997]
[1742821543863,0.20929575,87268.0,87267.0,0.541997]
[1742821547078,0.32387145,87268.0,87267.0,0.42742]
[1742821547279,0.20929575,87268.0,87267.0,0.541997]
[1742821549577,0.32387145,87268.0,87267.0,0.541997]
[1742821550784,0.20929575,87268.0,87267.0,0.541997]
[1742821552985,0.09760333,87268.0,87267.0,0.541997]
[1742821553178,0.09628333,87268.0,87267.0,0.874957]
[1742821553375,0.09628333,87268.0,87267.0,0.654957]
[1742821554085,0.001,87268.0,87267.0,0.654957]
[1742821555989,0.14799019,87268.0,87267.0,0.541997]
[1742821556183,0.21421019,87268.0,87267.0,0.541997]
[1742821558486,0.14931019,87268.0,87267.0,0.541997]
[1742821560290,0.21441019,87268.0,87267.0,0.541997]
[1742821560584,0.00232,87268.0,87267.0,0.924957]
[1742821560885,0.001,87268.0,87267.0,0.924957]
[1742821561084,0.001,87268.0,87267.0,2.424957]
[1742821561484,0.001,87268.0,87267.0,2.154957]
[1742821561776,0.001,87268.0,87267.0,0.914957]
[1742821563180,0.13758146,87268.0,87267.0,0.914957]
[1742821565683,0.16788146,87268.0,87267.0,0.914957]
[1742821565886,0.19948146,87268.0,87267.0,0.914957]
[1742821566088,0.0313,87268.0,87267.0,0.914957]
[1742821567393,0.0636,87268.0,87267.0,0.914957]
[1742821570294,0.0636,87268.0,87267.0,0.654957]
[1742821571797,0.0636,87268.0,87267.0,0.834957]
[1742821572398,0.0636,87268.0,87267.0,0.834997]
[1742821572695,0.06488,87268.0,87267.0,0.834997]
[1742821572885,0.0636,87268.0,87267.0,0.834997]
[1742821573797,0.001,87268.0,87267.0,0.834997]
[1742821574191,0.001,87268.0,87267.0,1.064997]
[1742821574398,0.13659654,87269.0,87268.0,0.1145757]
[1742821574589,4e-08,87269.0,87268.0,0.6258557]
[1742821574785,4e-08,87269.0,87268.0,0.8363557]
[1742821574984,4e-08,87269.0,87268.0,2.3363557]
[1742821575389,0.0313,87284.0,87276.0,0.1145652]
[1742821575390,0.20373967,87283.0,87276.0,0.1145652]
[1742821575592,0.23443967,87283.0,87276.0,0.5896852]
[1742821575894,0.40122911,87277.0,87276.0,0.53562]
[1742821576091,0.40122911,87277.0,87276.0,0.4767252]
[1742821576396,0.37886521,87277.0,87276.0,0.4767252]
[1742821576599,0.31736521,87277.0,87276.0,0.7782252]
[1742821576792,0.31736521,87277.0,87276.0,0.8916652]
[1742821576793,0.20278683,87277.0,87276.0,0.8916652]
[1742821576989,0.17208683,87277.0,87276.0,0.8916652]
[1742821577695,0.17072683,87277.0,87276.0,0.8916652]
[1742821577895,0.17204683,87277.0,87276.0,0.8916652]
[1742821578085,0.00132,87277.0,87276.0,0.8916652]
[1742821578287,0.0307,87279.0,87278.0,0.1145626]
[1742821578496,0.03078,87279.0,87278.0,0.3458426]
[1742821578789,0.03078,87279.0,87278.0,0.4073426]
[1742821581010,0.03078,87279.0,87278.0,0.4093426]
[1742821582800,0.03078,87279.0,87278.0,0.6793426]
[1742821583205,0.03078,87279.0,87278.0,0.4093426]
[1742821583504,0.03078,87279.0,87278.0,0.6593426]
[1742821583705,0.03078,87279.0,87278.0,0.4093426]
[1742821583907,0.03078,87279.0,87278.0,0.6793426]
[1742821586307,8e-05,87279.0,87278.0,0.6793426]
[1742821586809,8e-05,87279.0,87278.0,1.0952426]
[1742821586810,1e-07,87279.0,87278.0,1.0952426]
[1742821586998,0.00017188,87287.0,87286.0,0.1145521]
[1742821586999,8e-08,87287.0,87286.0,0.1145521]
[1742821587201,8e-08,87287.0,87286.0,1.6101921]
[1742821587902,8e-08,87287.0,87286.0,3.1101921]
[1742821588312,8e-08,87287.0,87286.0,3.1111921]
[1742821588913,8e-08,87291.0,87290.0,0.1145469]
[1742821589099,8e-08,87291.0,87290.0,0.9566269]
[1742821589300,8e-08,87291.0,87290.0,1.0220269]
[1742821590509,0.00300008,87291.0,87290.0,1.0220269]
[1742821592317,8e-08,87291.0,87290.0,1.0220269]
[1742821593513,8e-08,87291.0,87290.0,1.4379269]
[1742821594018,8e-08,87291.0,87290.0,2.9379269]
[1742821594610,8e-08,87296.0,87295.0,0.1145403]
[1742821594812,8e-08,87296.0,87295.0,1.0695803]
[1742821595006,8e-08,87296.0,87295.0,1.1322803]
[1742821595706,8e-08,87296.0,87295.0,1.14351486]
[1742821597320,0.00300008,87296.0,87295.0,1.14351486]
[1742821597510,0.00500008,87296.0,87295.0,1.14351486]
[1742821597706,0.00500008,87296.0,87295.0,0.91351486]
[1742821599012,0.00500008,87296.0,87295.0,0.88181486]
[1742821599211,0.23409252,87296.0,87295.0,0.61212]
[1742821599427,0.23541252,87296.0,87295.0,0.4766603]
[1742821599627,0.29651252,87296.0,87295.0,0.1158603]
[1742821600323,0.29651252,87296.0,87295.0,0.00132]
[1742821600527,0.1145429,87293.0,87292.0,0.1145435]
[1742821600834,0.1152229,87293.0,87292.0,0.1159035]
[1742821601134,0.22978027,87293.0,87292.0,0.1159035]
[1742821601833,0.23378027,87293.0,87292.0,0.1159035]
[1742821602831,0.32668027,87293.0,87292.0,0.1159035]
[1742821603635,0.32668027,87293.0,87292.0,0.1479035]
[1742821607044,0.33564338,87293.0,87292.0,0.1479035]
[1742821608243,0.33564338,87293.0,87292.0,0.1159035]
[1742821609336,0.33564338,87293.0,87292.0,0.1463035]
[1742821609542,0.34463684,87293.0,87292.0,0.1463035]
[1742821612145,0.34463684,87293.0,87292.0,0.00136]
[1742821612348,0.1145534,87285.0,87282.0,0.0572783]
[1742821612647,0.12479651,87285.0,87284.0,0.1158734]
[1742821612846,0.19488997,87285.0,87284.0,0.1158734]
[1742821613047,0.30944734,87285.0,87284.0,0.1471734]
[1742821613442,0.30045388,87285.0,87284.0,0.1471734]
[1742821613648,0.30145388,87285.0,87284.0,0.15943297]
[1742821614046,0.18690048,87285.0,87284.0,0.15943297]
[1742821614247,0.30145388,87285.0,87284.0,0.18993297]
[1742821614844,0.18690048,87285.0,87284.0,0.18993297]
[1742821615352,0.30145388,87285.0,87284.0,0.18993297]
[1742821617052,0.18690048,87285.0,87284.0,0.18993297]
[1742821617256,0.18690048,87285.0,87284.0,0.22023297]
[1742821617642,0.18687909,87285.0,87284.0,0.22023297]
[1742821618051,0.30143249,87285.0,87284.0,0.22023297]
[1742821618249,0.18687909,87285.0,87284.0,0.22023297]
[1742821618437,0.30143249,87285.0,87284.0,0.22023297]
[1742821618639,0.30143249,87285.0,87284.0,0.18993297]
[1742821620346,0.18687909,87285.0,87284.0,0.18993297]
[1742821620655,0.30143249,87285.0,87284.0,0.18993297]
[1742821620849,0.3014327,87285.0,87284.0,0.18993297]
[1742821622240,0.29249077,87285.0,87284.0,0.18993297]
[1742821622447,0.30143362,87285.0,87284.0,0.18993297]
[1742821624356,0.1145613,87279.0,87278.0,0.00017188]
[1742821624553,0.48518416,87279.0,87278.0,0.20660863]
[1742821624955,0.54988416,87279.0,87278.0,0.20660863]
[1742821625153,0.66445203,87279.0,87278.0,0.20660863]
[1742821625556,0.65550918,87279.0,87278.0,0.20660863]
[1742821625956,0.66700243,87279.0,87278.0,0.20660863]
[1742821626455,0.1145665,87275.0,87274.0,0.27407567]
[1742821626657,0.5943065,87275.0,87274.0,0.27471567]
[1742821626855,0.6561065,87275.0,87274.0,0.27471567]
[1742821627263,0.7706875,87275.0,87274.0,0.27471567]
[1742821627845,0.7706875,87275.0,87274.0,0.27571567]
[1742821628756,0.7706875,87275.0,87274.0,0.00164]
[1742821628965,0.7706875,87275.0,87274.0,0.001]
[1742821629556,0.114577,87267.0,87266.0,0.00017188]
[1742821629755,0.59533701,87267.0,87266.0,0.00017188]
[1742821629955,0.68743701,87267.0,87266.0,0.00017188]
[1742821630364,0.80202851,87267.0,87266.0,0.00017188]
[1742821630770,0.80302851,87267.0,87266.0,0.00017188]
[1742821630962,0.80302851,87267.0,87266.0,0.00317188]
[1742821632563,0.80302851,87267.0,87266.0,0.03537188]
[1742821633178,0.80302851,87267.0,87266.0,0.00317188]
[1742821637080,0.80876077,87267.0,87266.0,0.00317188]
[1742821637961,0.80302851,87267.0,87266.0,0.00317188]
[1742821638157,0.80876101,87267.0,87266.0,0.00317188]
[1742821639172,0.80302851,87267.0,87266.0,0.00317188]
[1742821639573,0.80876105,87267.0,87266.0,0.00317188]
[1742821639876,0.80302851,87267.0,87266.0,0.00317188]
[1742821640465,0.1145797,87265.0,87264.0,0.0633]
[1742821640661,0.1145797,87265.0,87251.0,0.0311]
[1742821640662,0.0572977,87253.0,87251.0,0.0311]
[1742821640869,0.2919731,87253.0,87252.0,0.0626]
[1742821641168,0.6527731,87253.0,87252.0,0.0632]
[1742821641375,0.6527731,87253.0,87252.0,0.0626]
[1742821641564,0.76738365,87253.0,87252.0,0.0626]
[1742821641966,0.76738365,87253.0,87252.0,0.0632]
[1742821642166,0.76738365,87253.0,87252.0,0.0626]
[1742821642369,0.76738365,87253.0,87252.0,0.06324]
[1742821643071,0.64798365,87253.0,87252.0,0.06324]
[1742821643278,0.76714365,87253.0,87252.0,0.0626]
[1742821643571,0.76714365,87253.0,87252.0,0.06324]
[1742821645779,0.76714365,87253.0,87252.0,0.0626]
[1742821645968,0.76714365,87253.0,87252.0,0.0632]
[1742821646168,0.76714365,87253.0,87252.0,0.0626]
[1742821646369,0.76714365,87253.0,87252.0,0.06328]
[1742821646981,0.76714365,87253.0,87252.0,0.0626]
[1742821647370,0.76714365,87253.0,87252.0,0.06324]
[1742821647972,0.76714365,87253.0,87252.0,0.0626]
[1742821648482,0.76714365,87253.0,87252.0,0.0632]
[1742821648775,0.76714365,87253.0,87252.0,0.0626]
[1742821649182,0.76714365,87253.0,87252.0,0.0632]
[1742821649976,0.76714365,87253.0,87252.0,0.0626]
[1742821650579,0.76714365,87253.0,87252.0,0.0632]
[1742821650970,0.76714365,87253.0,87252.0,0.0626]
[1742821651679,0.47609055,87253.0,87252.0,0.0626]
[1742821651878,0.59473055,87253.0,87252.0,0.1778367]
[1742821652084,0.59473055,87253.0,87252.0,0.06324]
[1742821652085,0.70932595,87253.0,87252.0,0.06324]
[1742821652281,0.70932595,87253.0,87252.0,0.1778767]
[1742821652482,0.70932595,87253.0,87252.0,0.1784767]
[1742821652687,0.70932595,87253.0,87252.0,0.1777967]
[1742821654683,0.70932595,87253.0,87252.0,0.0632]
[1742821654887,0.70932595,87253.0,87252.0,0.1771967]
[1742821655082,0.59068595,87253.0,87252.0,0.1778367]
[1742821656200,0.22988595,87253.0,87252.0,0.1778367]
[1742821656494,0.59068595,87253.0,87252.0,0.1778367]
[1742821659197,0.59068595,87253.0,87252.0,0.06324]
[1742821659498,0.59068595,87253.0,87252.0,0.1771967]
[1742821659697,0.59068595,87253.0,87252.0,0.1778367]
[1742821660996,0.47609055,87253.0,87252.0,0.1778367]
[1742821661898,0.59068595,87253.0,87252.0,0.1778367]
[1742821662495,0.47609055,87253.0,87252.0,0.4078367]
[1742821662698,0.59068595,87253.0,87252.0,0.1778367]
[1742821663098,0.59268595,87253.0,87252.0,0.1778367]
[1742821663704,0.59068595,87253.0,87252.0,0.1778367]
[1742821663888,0.47609055,87253.0,87252.0,0.1778367]
[1742821664290,0.36148,87253.0,87252.0,0.1778367]
[1742821664601,0.36248,87253.0,87252.0,0.1778367]
[1742821664901,0.36248,87253.0,87252.0,0.4078367]
[1742821666302,0.00068,87253.0,87252.0,0.4078367]
[1742821666503,8e-05,87254.0,87253.0,0.1145954]
[1742821666699,0.00076,87254.0,87253.0,0.3752754]
[1742821666902,0.00076,87254.0,87253.0,0.4359754]
[1742821669720,0.00076,87254.0,87253.0,0.1759754]
[1742821671001,0.01422974,87258.0,87257.0,0.1145902]
[1742821671309,0.01422974,87258.0,87257.0,0.7799902]
[1742821674000,0.36088,87281.0,87272.0,0.0572852]
[1742821674205,0.00077189,87275.0,87274.0,0.1145679]
[1742821674405,0.00077189,87275.0,87274.0,0.3852079]
[1742821674703,0.11537521,87275.0,87274.0,0.4483079]
[1742821675010,0.11537521,87275.0,87274.0,0.45989033]
[1742821676291,0.11737521,87275.0,87274.0,0.45989033]
[1742821677306,0.11537521,87275.0,87274.0,0.18989033]
[1742821678202,0.22994171,87275.0,87274.0,0.18989033]
[1742821678998,0.26014171,87275.0,87274.0,0.18989033]
[1742821679810,0.29164171,87275.0,87274.0,0.18989033]
[1742821681002,0.29164171,87275.0,87274.0,0.19189033]
[1742821681710,0.26014171,87275.0,87274.0,0.19189033]
[1742821682507,0.14557521,87275.0,87274.0,0.19189033]
[1742821682707,0.22994171,87275.0,87274.0,0.19189033]
[1742821682908,0.11537521,87275.0,87274.0,0.44189033]
[1742821683099,0.22994171,87275.0,87274.0,0.44189033]
[1742821683911,0.36088,87281.0,87280.0,0.11456]
[1742821684112,0.4762387,87281.0,87280.0,0.1154]
[1742821684316,0.4762387,87281.0,87280.0,0.1789]
[1742821684612,0.6222397,87281.0,87280.0,0.1789]
[1742821685002,0.507681,87281.0,87280.0,0.1789]
[1742821685203,0.476181,87281.0,87280.0,0.1799]
[1742821685810,0.476181,87281.0,87280.0,0.4199]
[1742821686111,0.477181,87281.0,87280.0,0.4199]
[1742821686317,0.5917397,87281.0,87280.0,0.4199]
[1742821686510,0.5917397,87281.0,87280.0,0.1799]
[1742821687018,0.6222397,87281.0,87280.0,0.1799]
[1742821687210,0.6222397,87281.0,87280.0,0.1789]
[1742821687405,0.6222397,87281.0,87280.0,0.1799]
[1742821687604,0.6548397,87281.0,87280.0,0.1799]
[1742821688214,0.6548397,87281.0,87280.0,0.1809]
[1742821698531,0.6548397,87281.0,87280.0,0.03344]
[1742821698725,0.6548397,87281.0,87280.0,0.0326]
[1742821699119,0.6548397,87281.0,87280.0,0.0334]
[1742821700319,0.6548397,87281.0,87280.0,0.0646]
[1742821700519,0.66631385,87281.0,87280.0,0.0646]
[1742821701321,0.69228392,87281.0,87280.0,0.0646]
[1742821703022,0.68080977,87281.0,87280.0,0.0646]
[1742821703224,0.68080977,87281.0,87280.0,0.17916]
[1742821704526,0.540281,87281.0,87260.0,0.27478884]
[1742821704722,0.1145784,87266.0,87263.0,0.0572909]
[1742821704924,0.11517841,87266.0,87260.0,0.27478884]
[1742821705119,0.14527841,87266.0,87265.0,0.00077188]
[1742821705533,0.25987123,87266.0,87265.0,0.00077188]
[1742821705733,0.32037123,87266.0,87265.0,0.00017188]
[1742821705927,0.32037123,87266.0,87265.0,0.00077188]
[1742821706627,0.32037123,87266.0,87265.0,0.00017188]
[1742821707027,0.32037123,87266.0,87265.0,8e-08]
[1742821707430,0.32037123,87266.0,87258.0,0.27478884]
[1742821707431,0.1145876,87259.0,87258.0,0.27478884]
[1742821707731,0.60252184,87259.0,87258.0,0.23955651]
[1742821708031,0.1145967,87252.0,87251.0,0.0306]
[1742821708221,0.48521093,87252.0,87251.0,0.03128]
[1742821708734,0.70819871,87252.0,87251.0,0.00068]
[1742821708935,0.80660647,87252.0,87251.0,0.00068]
[1742821709530,0.78020643,87252.0,87251.0,0.00068]
[1742821709728,0.1146007,87249.0,87248.0,0.0328]
[1742821709924,0.1154407,87249.0,87248.0,0.0328]
[1742821710120,0.12444842,87249.0,87248.0,0.0328]
[1742821710322,0.12444842,87249.0,87248.0,0.0646]
[1742821710532,0.23906357,87249.0,87248.0,0.0646]
[1742821710726,0.23906357,87249.0,87248.0,0.0654]
[1742821711940,0.35622357,87249.0,87248.0,0.0646]
[1742821712135,0.35622357,87249.0,87248.0,0.0652]
[1742821712928,0.35722357,87249.0,87248.0,0.0646]
[1742821713128,0.35722357,87249.0,87248.0,0.06548]
[1742821713327,0.35722357,87249.0,87248.0,0.0646]
[1742821713731,0.35722357,87249.0,87248.0,0.06528]
[1742821714445,0.35722357,87249.0,87248.0,0.0646]
[1742821714640,0.24006357,87249.0,87248.0,0.0652]
[1742821714937,0.35702357,87249.0,87248.0,0.0646]
[1742821716731,0.35702357,87249.0,87248.0,0.0652]
[1742821717934,0.35702357,87249.0,87248.0,0.0646]
[1742821719031,0.35682357,87249.0,87248.0,0.0646]
[1742821719742,0.24006357,87249.0,87248.0,0.179202]
[1742821719939,0.35674357,87249.0,87248.0,0.179842]
[1742821720741,0.34773585,87249.0,87248.0,0.179842]
[1742821722437,0.11645515,87249.0,87248.0,0.179842]
[1742821722645,0.23105585,87249.0,87248.0,0.179842]
[1742821725152,0.23105585,87249.0,87248.0,0.06524]
[1742821725446,0.23105585,87249.0,87248.0,0.179842]
[1742821729748,0.23105585,87249.0,87248.0,0.06524]
[1742821729944,0.29485585,87249.0,87248.0,0.179202]
[1742821730137,0.26245585,87249.0,87248.0,0.179802]
[1742821730448,0.26245585,87249.0,87248.0,0.0652]
[1742821730646,0.26245585,87249.0,87248.0,0.0646]
[1742821731248,0.29485585,87249.0,87248.0,0.179202]
[1742821731446,0.29485585,87249.0,87248.0,0.0646]
[1742821731951,0.29485585,87249.0,87248.0,0.0652]
[1742821732833,0.29485585,87249.0,87248.0,0.0646]
[1742821733451,0.29485585,87249.0,87248.0,0.179202]
[1742821733653,0.29485585,87249.0,87248.0,0.0652]
[1742821733852,0.29485585,87249.0,87248.0,0.179202]
[1742821734353,0.29485585,87249.0,87248.0,0.179802]
[1742821734549,0.29485585,87249.0,87248.0,0.0652]
[1742821735653,0.29485585,87249.0,87248.0,0.0646]
[1742821738551,0.41101585,87249.0,87248.0,0.0646]
[1742821739255,0.1146046,87246.0,87245.0,0.01232]
[1742821739460,0.4762446,87246.0,87245.0,0.01232]
[1742821739663,0.5389446,87246.0,87245.0,0.01232]
[1742821739962,0.65355975,87246.0,87245.0,0.01232]
[1742821741154,0.65455975,87246.0,87245.0,0.01232]
[1742821741561,0.62395975,87246.0,87245.0,0.01232]
[1742821742158,0.77111975,87246.0,87245.0,0.01232]
[1742821749653,0.77111975,87246.0,87245.0,0.01232]
[1742821750755,0.70781975,87246.0,87245.0,0.01232]
[1742821751063,0.59185975,87246.0,87245.0,0.1269259]
[1742821751257,0.70729975,87246.0,87245.0,0.1269259]
[1742821751654,0.70729975,87246.0,87245.0,0.13815069]
[1742821752166,0.59269515,87246.0,87245.0,0.13815069]
[1742821752567,0.59269515,87246.0,87245.0,0.13875069]
[1742821752756,0.59269515,87246.0,87245.0,0.13815069]
[1742821753166,0.59269515,87246.0,87245.0,0.13895069]
[1742821753369,0.70729975,87246.0,87245.0,0.16915069]
[1742821753667,0.47725515,87246.0,87245.0,0.16915069]
[1742821753868,0.0885945,87258.0,87251.0,0.1145981]
[1742821754069,0.36144,87252.0,87251.0,0.3853181]
[1742821754256,0.36144,87252.0,87251.0,0.4467181]
[1742821754564,0.00017188,87260.0,87259.0,0.1145876]
[1742821754765,0.01421581,87271.0,87270.0,0.1145731]
[1742821754960,0.01533403,87272.0,87271.0,0.1145718]
[1742821755169,0.00172001,87272.0,87271.0,0.1447718]
[1742821755463,0.11501121,87272.0,87271.0,0.1454118]
[1742821755769,0.11501121,87272.0,87271.0,0.15670094]
[1742821756871,0.11501121,87272.0,87271.0,0.1454118]
[1742821757366,0.11561122,87272.0,87271.0,0.1454118]
[1742821757570,0.12457947,87272.0,87271.0,0.1454118]
[1742821757870,0.12957947,87272.0,87271.0,0.1454118]
[1742821758069,0.12957947,87272.0,87271.0,0.1768118]
[1742821758259,0.13457947,87272.0,87271.0,0.1768118]
[1742821758857,0.24914997,87272.0,87271.0,0.1768118]
[1742821759654,0.13457947,87272.0,87271.0,0.1768118]
[1742821760459,0.13397946,87272.0,87271.0,0.1768118]
[1742821761073,0.01936825,87272.0,87271.0,0.4268118]
[1742821761368,8e-05,87273.0,87272.0,0.1145705]
[1742821761570,8e-05,87273.0,87272.0,0.3552105]
[1742821761771,8e-05,87273.0,87272.0,0.3879105]
[1742821762176,0.00017188,87280.0,87279.0,0.1145613]
[1742821762478,0.00081188,87280.0,87279.0,0.1152013]
[1742821762774,0.00017188,87280.0,87279.0,0.1152013]
[1742821762972,0.11475551,87280.0,87279.0,0.1469013]
[1742821763163,0.11543551,87280.0,87279.0,0.1469013]
[1742821763675,0.11475551,87280.0,87279.0,0.1469013]
[1742821764177,0.11475551,87280.0,87279.0,0.3769013]
[1742821764368,0.00017188,87280.0,87279.0,0.6469013]
[1742821764668,0.00017188,87280.0,87279.0,0.6782013]
[1742821764869,0.00417188,87280.0,87279.0,0.6782013]
[1742821765270,0.00817188,87280.0,87279.0,0.6782013]
[1742821765861,0.00417188,87280.0,87279.0,0.6782013]
[1742821767377,0.00017188,87280.0,87279.0,0.6802013]
[1742821768074,8e-08,87280.0,87279.0,0.8302013]
[1742821768773,8e-08,87280.0,87279.0,0.6802013]
[1742821769878,8e-08,87280.0,87279.0,0.4102013]
[1742821770079,8e-08,87280.0,87279.0,0.5247213]
[1742821770275,8e-08,87280.0,87279.0,0.4102013]
[1742821770581,0.22913452,87280.0,87279.0,0.1802013]
[1742821770777,0.29395452,87280.0,87279.0,0.06564]
[1742821771080,0.65475452,87280.0,87279.0,0.00264]
[1742821772783,0.65475452,87280.0,87279.0,0.1172013]
[1742821773185,0.65475452,87280.0,87279.0,0.00264]
[1742821773672,0.65475452,87280.0,87279.0,0.06514]
[1742821775980,0.65475452,87280.0,87279.0,0.0645]
[1742821777070,0.65475452,87280.0,87279.0,0.06518]
[1742821777283,0.66374331,87280.0,87279.0,0.06518]
[1742821778479,0.66374331,87280.0,87279.0,0.1797413]
[1742821778988,0.66374331,87280.0,87279.0,0.06518]
[1742821781478,0.66374331,87280.0,87279.0,0.1797413]
[1742821782579,0.65475452,87280.0,87279.0,0.1797413]
[1742821783186,0.65475452,87280.0,87279.0,0.06518]
[1742821784186,0.65475452,87280.0,87279.0,0.1797413]
[1742821792185,0.65475452,87280.0,87279.0,0.06518]
[1742821792504,0.65475452,87280.0,87279.0,0.1797413]
[1742821792686,0.67982874,87280.0,87279.0,0.1797413]
[1742821793891,0.65475452,87280.0,87279.0,0.1797413]
[1742821796793,0.47609452,87280.0,87279.0,0.1797413]
[1742821797394,0.47609452,87280.0,87279.0,0.19102706]
[1742821797797,0.59065452,87280.0,87279.0,0.19102706]
[1742821797988,0.47609452,87280.0,87279.0,0.19102706]
[1742821798384,0.47609452,87280.0,87279.0,0.1797413]
[1742821798385,0.59065452,87280.0,87279.0,0.1797413]
[1742821798798,0.47609452,87280.0,87279.0,0.1797413]
[1742821799000,0.11529452,87280.0,87279.0,0.1797413]
[1742821799189,0.11529452,87280.0,87279.0,0.19138654]
[1742821800492,0.11457452,87280.0,87279.0,0.19138654]
[1742821800695,0.11521452,87280.0,87279.0,0.19138654]
[1742821802109,0.22913452,87280.0,87279.0,0.19138654]
[1742821802405,0.22981452,87280.0,87279.0,0.1797413]
[1742821802586,0.11525452,87280.0,87279.0,0.1797413]
[1742821804100,0.11457452,87280.0,87279.0,0.1797413]
[1742821804293,0.11521452,87280.0,87279.0,0.1797413]
[1742821806402,8e-05,87281.0,87280.0,0.11456]
[1742821806604,0.0004,87288.0,87287.0,0.1145508]
[1742821806803,0.0004,87288.0,87287.0,0.8295908]
[1742821806990,0.0004,87288.0,87287.0,0.8918908]
[1742821808694,0.0024,87288.0,87287.0,0.8918908]
[1742821808900,0.0024,87288.0,87287.0,1.1518908]
[1742821809201,1e-07,87288.0,87287.0,1.1518908]
[1742821809591,1e-07,87288.0,87287.0,1.1837908]
[1742821809906,1e-07,87288.0,87287.0,1.7496908]
[1742821810603,7.198e-05,87296.0,87295.0,0.1145403]
[1742821810905,7.198e-05,87296.0,87295.0,1.0994203]
[1742821811101,7.198e-05,87296.0,87295.0,1.1628203]
[1742821811896,0.00207198,87296.0,87295.0,1.1628203]
[1742821812204,0.00207198,87296.0,87295.0,1.5787203]
[1742821812403,0.00507198,87296.0,87295.0,1.5787203]
[1742821812604,0.00307198,87296.0,87295.0,1.5827203]
[1742821814314,7.198e-05,87296.0,87295.0,1.5857203]
[1742821814603,8e-08,87296.0,87295.0,1.5867203]
[1742821814813,8e-08,87298.0,87297.0,0.1145377]
[1742821814998,8e-08,87298.0,87297.0,0.6152577]
[1742821815197,8e-08,87298.0,87297.0,0.6789577]
[1742821815397,8e-08,87298.0,87297.0,1.0948577]
[1742821816606,8e-08,87298.0,87297.0,1.2448577]
[1742821817199,8e-08,87301.0,87300.0,0.1145337]
[1742821817397,8e-08,87301.0,87300.0,0.9859737]
[1742821817603,8e-08,87301.0,87300.0,1.1359737]
[1742821818805,8e-08,87301.0,87300.0,1.1419737]
[1742821819006,8e-08,87301.0,87300.0,2.6419737]
[1742821819206,8e-08,87301.0,87300.0,3.1711937]
[1742821819709,0.14195816,87321.0,87320.0,0.1145075]
[1742821819910,0.14259816,87321.0,87320.0,0.4759475]
[1742821820507,0.14263884,87321.0,87320.0,0.4759475]
[1742821820703,0.14263884,87321.0,87320.0,0.5392475]
[1742821820898,0.17423884,87321.0,87320.0,0.5392475]
[1742821821205,0.00364,87321.0,87320.0,0.7592475]
[1742821821508,0.003,87321.0,87320.0,0.7592475]
[1742821822006,0.003,87321.0,87320.0,0.5392475]
[1742821822806,0.003,87321.0,87320.0,0.6525275]
[1742821823007,0.0343,87321.0,87320.0,0.6525275]
[1742821823812,0.0343,87321.0,87320.0,0.66403458]
[1742821826506,0.14882064,87321.0,87320.0,0.55075458]
[1742821826699,0.14954064,87321.0,87320.0,0.55075458]
[1742821827301,0.0343,87321.0,87320.0,0.59075458]
[1742821827500,0.003,87321.0,87320.0,0.59075458]
[1742821830010,1e-07,87321.0,87320.0,0.95403458]
[1742821830812,1e-07,87321.0,87320.0,2.20403458]
[1742821831008,1e-07,87321.0,87320.0,2.24403458]
[1742821833915,1e-07,87321.0,87320.0,2.13075458]
[1742821834114,1e-07,87321.0,87320.0,2.24403458]
[1742821838315,1e-07,87321.0,87320.0,2.13075458]
[1742821838619,1e-07,87321.0,87320.0,2.24403458]
[1742821842421,1e-07,87325.0,87324.0,0.1145023]
[1742821842624,0.0001132,87329.0,87328.0,0.114497]
[1742821842810,0.0001132,87329.0,87328.0,1.109177]
[1742821843008,0.0001132,87329.0,87328.0,1.172777]
[1742821843218,1e-07,87329.0,87328.0,1.172777]
[1742821844925,0.0020001,87329.0,87328.0,1.172777]
[1742821845124,0.0020001,87329.0,87328.0,2.672777]
[1742821845324,0.0050001,87329.0,87328.0,2.672777]
[1742821845622,0.0050001,87329.0,87328.0,2.68121166]
[1742821847033,0.005,87329.0,87328.0,2.68121166]
[1742821847239,1e-07,87329.0,87328.0,2.68121166]
[1742821847530,8e-05,87333.0,87332.0,0.1144918]
[1742821847739,8e-05,87333.0,87332.0,1.0702318]
[1742821848840,0.00308,87333.0,87332.0,1.0702318]
[1742821849041,0.00508,87333.0,87332.0,1.0702318]
[1742821851238,0.00508,87333.0,87332.0,2.5702318]
[1742821851743,0.0004,87336.0,87332.0,2.5702318]
[1742821851744,0.0004,87336.0,87335.0,0.1144878]
[1742821852040,0.0004,87336.0,87335.0,0.7283678]
[1742821852240,0.0304,87350.0,87349.0,0.1144695]
[1742821852439,0.0304,87350.0,87349.0,0.4759095]
[1742821852637,0.03088,87356.0,87351.0,0.1144669]
[1742821852840,0.0304,87355.0,87351.0,0.7483469]
[1742821853039,0.0543,87355.0,87351.0,0.7483469]
[1742821853339,1e-07,87352.0,87351.0,0.7483469]
[1742821853642,1e-07,87352.0,87351.0,0.75959864]
[1742821854140,1e-07,87352.0,87351.0,2.25959864]